[Event "Early-Titled-Tuesday-Blitz-January-30-2024"]
[Site "Chess.com"]
[Date "2024.01.30"]
[Round "8"]
[White "bilosuvenosu06"]
[Black "IMRosen"]
[Result "1-0"]
[WhiteElo "2554"]
[BlackElo "2707"]
[TimeControl "180+1"]
[EndTime "9:34:07 PST"]
[Termination "bilosuvenosu06 won by checkmate"]

1. d4 {[%clk 0:02:54.8]} 1... d5 {[%clk 0:02:59.7]} 2. Nf3 {[%clk 0:02:55]} 2...
Nf6 {[%clk 0:02:59.5]} 3. Bf4 {[%clk 0:02:54.7]} 3... c5 {[%clk 0:02:59.4]} 4.
e3 {[%clk 0:02:55]} 4... Nc6 {[%clk 0:02:59.2]} 5. c3 {[%clk 0:02:55]} 5... Qb6
{[%clk 0:02:58.8]} 6. Qb3 {[%clk 0:02:54.2]} 6... c4 {[%clk 0:02:59.3]} 7. Qxb6
{[%clk 0:02:54.3]} 7... axb6 {[%clk 0:03:00.2]} 8. Nbd2 {[%clk 0:02:52.9]} 8...
Bf5 {[%clk 0:03:00.3]} 9. Be2 {[%clk 0:02:52.7]} 9... b5 {[%clk 0:02:59.8]} 10.
a3 {[%clk 0:02:50.5]} 10... e6 {[%clk 0:02:34.7]} 11. O-O {[%clk 0:02:49.8]}
11... h6 {[%clk 0:02:33.7]} 12. Ne5 {[%clk 0:02:49.5]} 12... Nd7 {[%clk
0:02:30.2]} 13. Nxd7 {[%clk 0:02:47.9]} 13... Kxd7 {[%clk 0:02:31.1]} 14. f3
{[%clk 0:02:48.5]} 14... g5 {[%clk 0:02:30.2]} 15. Bg3 {[%clk 0:02:48.3]} 15...
Bg6 {[%clk 0:02:30.8]} 16. e4 {[%clk 0:02:45.6]} 16... f5 {[%clk 0:02:16.6]} 17.
exd5 {[%clk 0:02:27.7]} 17... exd5 {[%clk 0:02:15.4]} 18. f4 {[%clk 0:02:27.9]}
18... g4 {[%clk 0:02:13.6]} 19. Rae1 {[%clk 0:02:27.2]} 19... Be7 {[%clk
0:02:03.8]} 20. Bd1 {[%clk 0:02:24.7]} 20... h5 {[%clk 0:02:01.2]} 21. Bf2
{[%clk 0:02:24.4]} 21... Bf6 {[%clk 0:01:48.2]} 22. Bc2 {[%clk 0:02:17.7]} 22...
Ne7 {[%clk 0:01:36.9]} 23. Re2 {[%clk 0:02:07.4]} 23... Nc8 {[%clk 0:01:34]} 24.
Rfe1 {[%clk 0:01:53.9]} 24... Nd6 {[%clk 0:01:34]} 25. g3 {[%clk 0:01:37.6]}
25... Rhf8 {[%clk 0:01:28.2]} 26. Kg2 {[%clk 0:01:36.7]} 26... Rf7 {[%clk
0:01:28.3]} 27. Kg1 {[%clk 0:01:24.2]} 27... Rh8 {[%clk 0:01:25.2]} 28. Kg2
{[%clk 0:01:24.1]} 28... Bd8 {[%clk 0:01:07.2]} 29. Nf1 {[%clk 0:01:21.4]} 29...
Ne4 {[%clk 0:00:58.8]} 30. Bxe4 {[%clk 0:01:20.9]} 30... fxe4 {[%clk 0:00:46.4]}
31. Be3 {[%clk 0:01:11.5]} 31... h4 {[%clk 0:00:42.3]} 32. Kg1 {[%clk
0:00:58.6]} 32... Bf5 {[%clk 0:00:38.2]} 33. Rg2 {[%clk 0:00:56.6]} 33... Rfh7
{[%clk 0:00:35.2]} 34. Kf2 {[%clk 0:00:50.4]} 34... hxg3+ {[%clk 0:00:27.7]} 35.
hxg3 {[%clk 0:00:51.3]} 35... Kc6 {[%clk 0:00:22]} 36. Nd2 {[%clk 0:00:49]}
36... Rh3 {[%clk 0:00:22.5]} 37. Reg1 {[%clk 0:00:47.3]} 37... Be7 {[%clk
0:00:22.3]} 38. Ke2 {[%clk 0:00:41.5]} 38... Kb6 {[%clk 0:00:22.7]} 39. Kf2
{[%clk 0:00:41.4]} 39... Ka5 {[%clk 0:00:22.8]} 40. Rb1 {[%clk 0:00:38.5]} 40...
Bf6 {[%clk 0:00:20.9]} 41. Rbg1 {[%clk 0:00:37.8]} 41... Ka4 {[%clk 0:00:19.6]}
42. Rb1 {[%clk 0:00:37.6]} 42... Be7 {[%clk 0:00:12.8]} 43. Ra1 {[%clk 0:00:37]}
43... Ka5 {[%clk 0:00:12.3]} 44. Rag1 {[%clk 0:00:35.5]} 44... Bd6 {[%clk
0:00:12.8]} 45. Re1 {[%clk 0:00:34]} 45... R8h7 {[%clk 0:00:13.4]} 46. Reg1
{[%clk 0:00:34]} 46... Kb6 {[%clk 0:00:14]} 47. Re1 {[%clk 0:00:34.3]} 47... Kc6
{[%clk 0:00:14.7]} 48. Reg1 {[%clk 0:00:34.6]} 48... Bc7 {[%clk 0:00:15.3]} 49.
Re1 {[%clk 0:00:34.6]} 49... Bd8 {[%clk 0:00:15.6]} 50. Reg1 {[%clk 0:00:34.6]}
50... Bf6 {[%clk 0:00:16.3]} 51. Re1 {[%clk 0:00:34.8]} 51... Rh8 {[%clk
0:00:16.9]} 52. Reg1 {[%clk 0:00:35.2]} 52... R3h5 {[%clk 0:00:17.5]} 53. Re1
{[%clk 0:00:34.9]} 53... Rg8 {[%clk 0:00:18.1]} 54. Reg1 {[%clk 0:00:34.9]}
54... Kb6 {[%clk 0:00:18.8]} 55. Re1 {[%clk 0:00:35.1]} 55... Rg7 {[%clk
0:00:19.5]} 56. Reg1 {[%clk 0:00:35.3]} 56... Rgh7 {[%clk 0:00:20.2]} 57. Re1
{[%clk 0:00:35.6]} 57... Ka6 {[%clk 0:00:20.9]} 58. Reg1 {[%clk 0:00:35.7]}
58... Bd7 {[%clk 0:00:21.6]} 59. Re1 {[%clk 0:00:35.6]} 59... Kb6 {[%clk
0:00:22.2]} 60. Reg1 {[%clk 0:00:35.9]} 60... Kc6 {[%clk 0:00:22.8]} 61. Re1
{[%clk 0:00:36.3]} 61... Kd6 {[%clk 0:00:23.4]} 62. Reg1 {[%clk 0:00:36.7]}
62... Rh8 {[%clk 0:00:24]} 63. Re1 {[%clk 0:00:36.9]} 63... Ra8 {[%clk
0:00:24.7]} 64. Ra1 {[%clk 0:00:36.6]} 64... Ke6 {[%clk 0:00:21.7]} 65. Rag1
{[%clk 0:00:35.6]} 65... Be7 {[%clk 0:00:22]} 66. Nb1 {[%clk 0:00:35.6]} 66...
Kd6 {[%clk 0:00:20.6]} 67. Re1 {[%clk 0:00:35.4]} 67... Kc6 {[%clk 0:00:18.9]}
68. Reg1 {[%clk 0:00:35.4]} 68... Kb6 {[%clk 0:00:19.5]} 69. Re1 {[%clk
0:00:35.1]} 69... Ka5 {[%clk 0:00:19.9]} 70. Reg1 {[%clk 0:00:34.7]} 70... Ka4
{[%clk 0:00:20.1]} 71. Nd2 {[%clk 0:00:34.9]} 71... Rh6 {[%clk 0:00:18.2]} 72.
Ra1 {[%clk 0:00:34.5]} 72... Ka5 {[%clk 0:00:18.4]} 73. Rgg1 {[%clk 0:00:34.5]}
73... Kb6 {[%clk 0:00:19]} 74. Rg2 {[%clk 0:00:33.5]} 74... b4 {[%clk
0:00:18.4]} 75. cxb4 {[%clk 0:00:32.2]} 75... Bxb4 {[%clk 0:00:18.1]} 76. Rc1
{[%clk 0:00:22.3]} 76... Bd6 {[%clk 0:00:14.7]} 77. Nb1 {[%clk 0:00:22.5]} 77...
Bc6 {[%clk 0:00:14.1]} 78. Nc3 {[%clk 0:00:22.7]} 78... Kc7 {[%clk 0:00:14.1]}
79. Na2 {[%clk 0:00:18.7]} 79... Ba4 {[%clk 0:00:12]} 80. Bd2 {[%clk 0:00:18.5]}
80... Bb3 {[%clk 0:00:10.6]} 81. Nb4 {[%clk 0:00:18.6]} 81... Ra5 {[%clk
0:00:06.3]} 82. Nd3 {[%clk 0:00:16.6]} 82... Rb5 {[%clk 0:00:03.7]} 83. Nb4
{[%clk 0:00:16.8]} 83... Kd7 {[%clk 0:00:03.6]} 84. Ke3 {[%clk 0:00:16.4]} 84...
Ra5 {[%clk 0:00:03.2]} 85. Nd3 {[%clk 0:00:15.5]} 85... Rb5 {[%clk 0:00:03]} 86.
Nb4 {[%clk 0:00:15.7]} 86... Rh3 {[%clk 0:00:03.2]} 87. Rcg1 {[%clk 0:00:15.6]}
87... Ke6 {[%clk 0:00:02.5]} 88. Kf2 {[%clk 0:00:16]} 88... Ra5 {[%clk
0:00:02.8]} 89. Ke3 {[%clk 0:00:16.2]} 89... Ra8 {[%clk 0:00:03.3]} 90. Kf2
{[%clk 0:00:16.1]} 90... Rf8 {[%clk 0:00:03.9]} 91. Ke2 {[%clk 0:00:15.7]} 91...
Rfh8 {[%clk 0:00:03.8]} 92. Kf2 {[%clk 0:00:15.7]} 92... Rh2 {[%clk 0:00:04.3]}
93. Rxh2 {[%clk 0:00:15.8]} 93... Rxh2+ {[%clk 0:00:05.2]} 94. Rg2 {[%clk
0:00:16.5]} 94... Rh1 {[%clk 0:00:05.8]} 95. Rg1 {[%clk 0:00:16]} 95... Rh3
{[%clk 0:00:06.5]} 96. Kg2 {[%clk 0:00:15.8]} 96... Kf5 {[%clk 0:00:05.5]} 97.
Rh1 {[%clk 0:00:14.8]} 97... Rxh1 {[%clk 0:00:05.8]} 98. Kxh1 {[%clk 0:00:15.7]}
98... e3 {[%clk 0:00:06.1]} 99. Bxe3 {[%clk 0:00:16.1]} 99... Ke4 {[%clk
0:00:06.7]} 100. Bf2 {[%clk 0:00:16.3]} 100... Bd1 {[%clk 0:00:06.2]} 101. Kg2
{[%clk 0:00:16.1]} 101... Bf3+ {[%clk 0:00:06.3]} 102. Kf1 {[%clk 0:00:16.9]}
102... Be7 {[%clk 0:00:04.5]} 103. Ke1 {[%clk 0:00:16.7]} 103... Bf6 {[%clk
0:00:04.9]} 104. Kd2 {[%clk 0:00:17.2]} 104... Bxd4 {[%clk 0:00:05.2]} 105. Bxd4
{[%clk 0:00:17.9]} 105... Kxd4 {[%clk 0:00:06.1]} 106. Nc2+ {[%clk 0:00:18.8]}
106... Ke4 {[%clk 0:00:05.6]} 107. Ne3 {[%clk 0:00:18.6]} 107... b5 {[%clk
0:00:06.1]} 108. Nc2 {[%clk 0:00:18.8]} 108... d4 {[%clk 0:00:05.4]} 109. Nb4
{[%clk 0:00:18.6]} 109... Bg2 {[%clk 0:00:03.6]} 110. Ke2 {[%clk 0:00:19.1]}
110... d3+ {[%clk 0:00:02.8]} 111. Kf2 {[%clk 0:00:19.3]} 111... d2 {[%clk
0:00:02.8]} 112. Ke2 {[%clk 0:00:19.8]} 112... Bh3 {[%clk 0:00:02.8]} 113. Nc2
{[%clk 0:00:19.6]} 113... Kf5 {[%clk 0:00:02.1]} 114. Nd4+ {[%clk 0:00:18.8]}
114... Ke4 {[%clk 0:00:02.6]} 115. Nxb5 {[%clk 0:00:19.3]} 115... Bg2 {[%clk
0:00:02.6]} 116. Nc3+ {[%clk 0:00:19.9]} 116... Kd4 {[%clk 0:00:02.5]} 117. Kxd2
{[%clk 0:00:20.8]} 117... Bc6 {[%clk 0:00:02.3]} 118. Ne2+ {[%clk 0:00:21.2]}
118... Ke4 {[%clk 0:00:02.5]} 119. Ng1 {[%clk 0:00:21.2]} 119... Bb5 {[%clk
0:00:01.5]} 120. Ne2 {[%clk 0:00:20.2]} 120... Kf3 {[%clk 0:00:01.5]} 121. Nd4+
{[%clk 0:00:20.9]} 121... Kxg3 {[%clk 0:00:02]} 122. Nxb5 {[%clk 0:00:21.8]}
122... Kf2 {[%clk 0:00:01.2]} 123. Nd4 {[%clk 0:00:22.5]} 123... g3 {[%clk
0:00:01.6]} 124. Ne2 {[%clk 0:00:23.3]} 124... g2 {[%clk 0:00:01.4]} 125. f5
{[%clk 0:00:23.9]} 125... Kf1 {[%clk 0:00:01.4]} 126. f6 {[%clk 0:00:24]} 126...
c3+ {[%clk 0:00:02.1]} 127. bxc3 {[%clk 0:00:24.1]} 127... Kf2 {[%clk
0:00:02.4]} 128. f7 {[%clk 0:00:24.3]} 128... Kf3 {[%clk 0:00:02.3]} 129. f8=Q+
{[%clk 0:00:25.2]} 129... Kg4 {[%clk 0:00:02.6]} 130. Qg7+ {[%clk 0:00:26.1]}
130... Kh3 {[%clk 0:00:02.4]} 131. Qg3# {[%clk 0:00:26.8]} 1-0

[Event "Early-Titled-Tuesday-Blitz-January-30-2024"]
[Site "Chess.com"]
[Date "2024.01.30"]
[Round "8"]
[White "Chessdreamer2020"]
[Black "chessdjw"]
[Result "1/2-1/2"]
[WhiteElo "2561"]
[BlackElo "2731"]
[TimeControl "180+1"]
[EndTime "9:34:29 PST"]
[Termination "Game drawn by 50-move rule"]

1. e4 {[%clk 0:02:59.2]} 1... c5 {[%clk 0:02:52]} 2. Nf3 {[%clk 0:02:59.3]} 2...
Nc6 {[%clk 0:02:51.9]} 3. Bb5 {[%clk 0:02:59.4]} 3... g6 {[%clk 0:02:49.3]} 4.
O-O {[%clk 0:02:59.6]} 4... Bg7 {[%clk 0:02:50]} 5. c3 {[%clk 0:03:00]} 5... Nf6
{[%clk 0:02:49.3]} 6. Qa4 {[%clk 0:03:00.2]} 6... O-O {[%clk 0:02:45.9]} 7. d4
{[%clk 0:03:00.5]} 7... cxd4 {[%clk 0:02:43.8]} 8. cxd4 {[%clk 0:03:01.4]} 8...
a6 {[%clk 0:02:38.3]} 9. Nc3 {[%clk 0:02:59.7]} 9... Ra7 {[%clk 0:02:08.1]} 10.
Bxc6 {[%clk 0:02:55.7]} 10... dxc6 {[%clk 0:02:09]} 11. h3 {[%clk 0:02:54.8]}
11... Be6 {[%clk 0:01:58.7]} 12. Be3 {[%clk 0:02:54.3]} 12... Ra8 {[%clk
0:01:58.9]} 13. Rfd1 {[%clk 0:02:49.4]} 13... Rc8 {[%clk 0:01:49.2]} 14. Qb4
{[%clk 0:02:44.5]} 14... Qc7 {[%clk 0:01:43.1]} 15. Rac1 {[%clk 0:02:44.1]}
15... a5 {[%clk 0:01:42.9]} 16. Qa3 {[%clk 0:02:40.9]} 16... Qd6 {[%clk
0:01:17.7]} 17. Qxa5 {[%clk 0:02:28.5]} 17... Ra8 {[%clk 0:01:17.6]} 18. Qg5
{[%clk 0:02:16.5]} 18... h6 {[%clk 0:01:07.8]} 19. Qh4 {[%clk 0:02:11.3]} 19...
g5 {[%clk 0:01:07.6]} 20. Bxg5 {[%clk 0:01:58.7]} 20... hxg5 {[%clk 0:01:07.8]}
21. Nxg5 {[%clk 0:01:59.6]} 21... Qb4 {[%clk 0:00:49.8]} 22. e5 {[%clk 0:01:57]}
22... Bf5 {[%clk 0:00:50.2]} 23. exf6 {[%clk 0:01:52.4]} 23... exf6 {[%clk
0:00:50.2]} 24. Nge4 {[%clk 0:01:43.2]} 24... Qxb2 {[%clk 0:00:47.2]} 25. Nxf6+
{[%clk 0:01:41.7]} 25... Bxf6 {[%clk 0:00:47.1]} 26. Qxf6 {[%clk 0:01:42.6]}
26... Bg6 {[%clk 0:00:47]} 27. f4 {[%clk 0:01:07.8]} 27... Ra5 {[%clk
0:00:42.4]} 28. d5 {[%clk 0:01:04.9]} 28... Rxa2 {[%clk 0:00:22.1]} 29. Qg5
{[%clk 0:00:57.8]} 29... Ra3 {[%clk 0:00:07.6]} 30. Ne4 {[%clk 0:00:41.6]} 30...
cxd5 {[%clk 0:00:04.1]} 31. Nf6+ {[%clk 0:00:40.6]} 31... Kg7 {[%clk 0:00:04.5]}
32. Nh5+ {[%clk 0:00:40.7]} 32... Kh7 {[%clk 0:00:04.7]} 33. f5 {[%clk
0:00:37.6]} 33... Qb6+ {[%clk 0:00:04.1]} 34. Kh1 {[%clk 0:00:35]} 34... Bxh5
{[%clk 0:00:04.6]} 35. Qxh5+ {[%clk 0:00:35.4]} 35... Qh6 {[%clk 0:00:04.2]} 36.
Qxh6+ {[%clk 0:00:34.4]} 36... Kxh6 {[%clk 0:00:05.1]} 37. Rxd5 {[%clk
0:00:35.3]} 37... f6 {[%clk 0:00:02.5]} 38. Rc7 {[%clk 0:00:34.2]} 38... Rb3
{[%clk 0:00:02.1]} 39. Rdd7 {[%clk 0:00:30.7]} 39... Kg5 {[%clk 0:00:02.5]} 40.
Rd5 {[%clk 0:00:26.5]} 40... b5 {[%clk 0:00:02.4]} 41. Rg7+ {[%clk 0:00:25.8]}
41... Kf4 {[%clk 0:00:02.9]} 42. Rg4+ {[%clk 0:00:26.3]} 42... Ke3 {[%clk
0:00:03.2]} 43. Kh2 {[%clk 0:00:24.4]} 43... Rb2 {[%clk 0:00:02.9]} 44. Rd6
{[%clk 0:00:21.3]} 44... b4 {[%clk 0:00:02.6]} 45. Rb6 {[%clk 0:00:21.5]} 45...
b3 {[%clk 0:00:02.6]} 46. Rxb3+ {[%clk 0:00:20.3]} 46... Rxb3 {[%clk 0:00:02.6]}
47. Rg3+ {[%clk 0:00:21.2]} 47... Kf4 {[%clk 0:00:03.4]} 48. Rxb3 {[%clk
0:00:19.7]} 48... Kxf5 {[%clk 0:00:04.3]} 49. Rf3+ {[%clk 0:00:19.1]} 49... Kg6
{[%clk 0:00:04.9]} 50. Kg3 {[%clk 0:00:19.6]} 50... Ra8 {[%clk 0:00:05.1]} 51.
Rf4 {[%clk 0:00:18.6]} 51... Ra2 {[%clk 0:00:05.5]} 52. Rf2 {[%clk 0:00:17.9]}
52... Ra3+ {[%clk 0:00:04.3]} 53. Kh4 {[%clk 0:00:18.4]} 53... Ra4+ {[%clk
0:00:03.9]} 54. g4 {[%clk 0:00:18.7]} 54... Ra3 {[%clk 0:00:04.5]} 55. Rf5
{[%clk 0:00:18]} 55... Rb3 {[%clk 0:00:04.7]} 56. Rc5 {[%clk 0:00:16]} 56... Ra3
{[%clk 0:00:05]} 57. Rc6 {[%clk 0:00:16.4]} 57... Rb3 {[%clk 0:00:05.4]} 58. Rc8
{[%clk 0:00:15.1]} 58... Ra3 {[%clk 0:00:05.8]} 59. Rg8+ {[%clk 0:00:13.8]}
59... Kh7 {[%clk 0:00:06.4]} 60. Rd8 {[%clk 0:00:13.4]} 60... Kg6 {[%clk
0:00:06.8]} 61. Rd5 {[%clk 0:00:13.8]} 61... Rb3 {[%clk 0:00:06.6]} 62. Rd2
{[%clk 0:00:13.6]} 62... Ra3 {[%clk 0:00:06.9]} 63. Rg2 {[%clk 0:00:13.9]} 63...
Ra8 {[%clk 0:00:07.4]} 64. Kg3 {[%clk 0:00:13.8]} 64... Ra3+ {[%clk 0:00:07.4]}
65. Kh4 {[%clk 0:00:14.2]} 65... Rb3 {[%clk 0:00:07.7]} 66. Rg3 {[%clk
0:00:13.6]} 66... Rb8 {[%clk 0:00:08.4]} 67. Rf3 {[%clk 0:00:13.9]} 67... Rb1
{[%clk 0:00:07.9]} 68. Kg3 {[%clk 0:00:13.9]} 68... Rb4 {[%clk 0:00:08.5]} 69.
h4 {[%clk 0:00:13.8]} 69... Ra4 {[%clk 0:00:08.9]} 70. Re3 {[%clk 0:00:14.1]}
70... Rb4 {[%clk 0:00:08.7]} 71. Re6 {[%clk 0:00:14.1]} 71... Kf7 {[%clk
0:00:08.5]} 72. Rd6 {[%clk 0:00:13.3]} 72... Rb3+ {[%clk 0:00:08.8]} 73. Kf4
{[%clk 0:00:13.3]} 73... Rb4+ {[%clk 0:00:09.4]} 74. Kf3 {[%clk 0:00:13.8]}
74... Ra4 {[%clk 0:00:09.4]} 75. Rd5 {[%clk 0:00:12.4]} 75... Kg6 {[%clk
0:00:09.4]} 76. Rd6 {[%clk 0:00:11.9]} 76... Ra3+ {[%clk 0:00:09.5]} 77. Ke4
{[%clk 0:00:10.6]} 77... Ra4+ {[%clk 0:00:09]} 78. Rd4 {[%clk 0:00:10.9]} 78...
Ra1 {[%clk 0:00:09.5]} 79. Rd5 {[%clk 0:00:07.9]} 79... Ra4+ {[%clk 0:00:09.8]}
80. Kf3 {[%clk 0:00:08.3]} 80... Ra3+ {[%clk 0:00:10.1]} 81. Kf4 {[%clk
0:00:08.5]} 81... Ra4+ {[%clk 0:00:10.6]} 82. Kg3 {[%clk 0:00:08]} 82... Ra3+
{[%clk 0:00:11]} 83. Kf2 {[%clk 0:00:08.2]} 83... Rb3 {[%clk 0:00:11.2]} 84. Rd4
{[%clk 0:00:07.3]} 84... Ra3 {[%clk 0:00:10.6]} 85. Re4 {[%clk 0:00:07.4]} 85...
Rb3 {[%clk 0:00:11]} 86. Re3 {[%clk 0:00:07.7]} 86... Rb1 {[%clk 0:00:11.3]} 87.
Kf3 {[%clk 0:00:08.1]} 87... Rb4 {[%clk 0:00:10.6]} 88. Re4 {[%clk 0:00:07]}
88... Rb1 {[%clk 0:00:10.5]} 89. Rd4 {[%clk 0:00:05.9]} 89... Rb3+ {[%clk
0:00:10.1]} 90. Kf4 {[%clk 0:00:06.2]} 90... Rb1 {[%clk 0:00:10]} 91. h5+ {[%clk
0:00:07.1]} 91... Kg7 {[%clk 0:00:09.7]} 92. Kf5 {[%clk 0:00:08]} 92... Rb5+
{[%clk 0:00:08.7]} 93. Ke6 {[%clk 0:00:08.3]} 93... Re5+ {[%clk 0:00:08.6]} 94.
Kd6 {[%clk 0:00:08.2]} 94... Re1 {[%clk 0:00:09.2]} 95. Rf4 {[%clk 0:00:08.3]}
95... Re2 {[%clk 0:00:09.2]} 96. Kd5 {[%clk 0:00:08.4]} 96... Re1 {[%clk
0:00:09.6]} 97. Re4 {[%clk 0:00:08.9]} 97... Ra1 {[%clk 0:00:09]} 98. Ke6 {[%clk
0:00:09.2]} 98... Ra6+ {[%clk 0:00:08.5]} 99. Kd7 {[%clk 0:00:09.1]} 99... Ra7+
{[%clk 0:00:08]} 100. Ke8 {[%clk 0:00:09.2]} 100... Ra8+ {[%clk 0:00:08.4]} 101.
Ke7 {[%clk 0:00:09.6]} 101... Ra7+ {[%clk 0:00:09.1]} 102. Ke6 {[%clk 0:00:10]}
102... Ra6+ {[%clk 0:00:09.8]} 103. Kf5 {[%clk 0:00:10.3]} 103... Ra5+ {[%clk
0:00:10.4]} 104. Kf4 {[%clk 0:00:10.7]} 104... Rb5 {[%clk 0:00:10.8]} 105. Re7+
{[%clk 0:00:11]} 105... Kh6 {[%clk 0:00:10.9]} 106. Re6 {[%clk 0:00:11.5]}
106... Kg7 {[%clk 0:00:10.5]} 107. Rd6 {[%clk 0:00:11.8]} 107... Ra5 {[%clk
0:00:10.7]} 108. Ke4 {[%clk 0:00:11.1]} 108... Re5+ {[%clk 0:00:10.9]} 109. Kf4
{[%clk 0:00:11]} 109... Ra5 {[%clk 0:00:11.8]} 110. Re6 {[%clk 0:00:11.2]}
110... Rb5 {[%clk 0:00:11.8]} 111. Re4 {[%clk 0:00:11.6]} 111... Ra5 {[%clk
0:00:11.5]} 112. Rd4 {[%clk 0:00:12.1]} 112... Rb5 {[%clk 0:00:11.6]} 113. Ke4
{[%clk 0:00:12.6]} 113... Re5+ {[%clk 0:00:11.7]} 114. Kf4 {[%clk 0:00:12.4]}
114... Ra5 {[%clk 0:00:12.6]} 115. Re4 {[%clk 0:00:12.6]} 115... Rb5 {[%clk
0:00:13]} 116. Ra4 {[%clk 0:00:12.8]} 116... Rc5 {[%clk 0:00:13.3]} 117. Kg3
{[%clk 0:00:12.9]} 117... Rb5 {[%clk 0:00:13.5]} 118. Kh4 {[%clk 0:00:13.3]}
118... Rb1 {[%clk 0:00:13.4]} 119. Rf4 {[%clk 0:00:13.4]} 119... Rh1+ {[%clk
0:00:12.7]} 120. Kg3 {[%clk 0:00:14]} 120... Rg1+ {[%clk 0:00:13.3]} 121. Kf3
{[%clk 0:00:14.5]} 121... Ra1 {[%clk 0:00:14]} 122. Re4 {[%clk 0:00:14.4]}
122... Ra3+ {[%clk 0:00:14]} 123. Kg2 {[%clk 0:00:13.5]} 123... Rb3 {[%clk
0:00:14.1]} 124. Rf4 {[%clk 0:00:13.9]} 124... Rc3 {[%clk 0:00:14.5]} 125. Rf3
{[%clk 0:00:14.3]} 125... Rc4 {[%clk 0:00:15]} 126. Kg3 {[%clk 0:00:15.1]}
126... Rb4 {[%clk 0:00:15.6]} 127. Kh4 {[%clk 0:00:14.7]} 127... Rb1 {[%clk
0:00:14.7]} 128. Rh3 {[%clk 0:00:15]} 128... Rb4 {[%clk 0:00:14.4]} 129. Kg3
{[%clk 0:00:15]} 129... Rb3+ {[%clk 0:00:14.8]} 130. Kg2 {[%clk 0:00:15.5]}
130... Rb2+ {[%clk 0:00:15.2]} 131. Kg3 {[%clk 0:00:15.8]} 131... Rb3+ {[%clk
0:00:15.6]} 132. Kh4 {[%clk 0:00:15.5]} 132... Rb1 {[%clk 0:00:16]} 133. Rh2
{[%clk 0:00:15.8]} 133... Rb3 {[%clk 0:00:15.9]} 134. Rd2 {[%clk 0:00:16.1]}
134... Rb1 {[%clk 0:00:15.6]} 135. Rd7+ {[%clk 0:00:15.8]} 135... Kh6 {[%clk
0:00:15.8]} 136. Rd3 {[%clk 0:00:15.7]} 136... Rh1+ {[%clk 0:00:15.9]} 137. Rh3
{[%clk 0:00:16.1]} 137... Rf1 {[%clk 0:00:15.9]} 138. Re3 {[%clk 0:00:15.2]}
138... Rh1+ {[%clk 0:00:15.9]} 139. Kg3 {[%clk 0:00:15.6]} 139... Ra1 {[%clk
0:00:15.8]} 140. Rf3 {[%clk 0:00:14.9]} 140... Kg7 {[%clk 0:00:15.9]} 141. Rb3
{[%clk 0:00:14.6]} 1/2-1/2

[Event "Early-Titled-Tuesday-Blitz-January-30-2024"]
[Site "Chess.com"]
[Date "2024.01.30"]
[Round "9"]
[White "secrethawk1"]
[Black "mertfelin"]
[Result "1-0"]
[WhiteElo "2453"]
[BlackElo "2278"]
[TimeControl "180+1"]
[EndTime "9:43:37 PST"]
[Termination "secrethawk1 won by resignation"]

1. d4 {[%clk 0:03:00.9]} 1... d5 {[%clk 0:02:59.7]} 2. Bf4 {[%clk 0:03:00.5]}
2... Nf6 {[%clk 0:02:59.3]} 3. e3 {[%clk 0:03:00]} 3... e6 {[%clk 0:02:57.6]} 4.
Nf3 {[%clk 0:02:53.7]} 4... c5 {[%clk 0:02:57.3]} 5. c3 {[%clk 0:02:51.2]} 5...
Nc6 {[%clk 0:02:57.7]} 6. Nbd2 {[%clk 0:02:49.3]} 6... cxd4 {[%clk 0:02:57.7]}
7. exd4 {[%clk 0:02:46.2]} 7... Nh5 {[%clk 0:02:57.9]} 8. Bg5 {[%clk 0:02:44.8]}
8... f6 {[%clk 0:02:51.2]} 9. Be3 {[%clk 0:02:36.1]} 9... Bd6 {[%clk 0:02:47.9]}
10. Bb5 {[%clk 0:02:31.6]} 10... O-O {[%clk 0:02:36.4]} 11. O-O {[%clk
0:02:29.7]} 11... Ne7 {[%clk 0:02:27.6]} 12. Nb3 {[%clk 0:02:19.6]} 12... Nf5
{[%clk 0:02:25.9]} 13. g4 {[%clk 0:02:17]} 1-0

[Event "Early-Titled-Tuesday-Blitz-January-30-2024"]
[Site "Chess.com"]
[Date "2024.01.30"]
[Round "9"]
[White "topce"]
[Black "cristianserban1"]
[Result "1-0"]
[WhiteElo "2413"]
[BlackElo "2566"]
[TimeControl "180+1"]
[EndTime "9:44:22 PST"]
[Termination "topce won by resignation"]

1. e4 {[%clk 0:03:00.9]} 1... g6 {[%clk 0:03:00.9]} 2. d4 {[%clk 0:02:58.3]}
2... Bg7 {[%clk 0:03:01.8]} 3. Nc3 {[%clk 0:02:56.2]} 3... c6 {[%clk 0:03:02.1]}
4. Nf3 {[%clk 0:02:52.5]} 4... d5 {[%clk 0:03:02.3]} 5. h3 {[%clk 0:02:48.5]}
5... dxe4 {[%clk 0:03:02.2]} 6. Nxe4 {[%clk 0:02:48.3]} 6... Nf6 {[%clk
0:03:03.1]} 7. Bd3 {[%clk 0:02:46.5]} 7... O-O {[%clk 0:03:02.5]} 8. O-O {[%clk
0:02:46.2]} 8... Qc7 {[%clk 0:03:02.7]} 9. Re1 {[%clk 0:02:43.9]} 9... b6 {[%clk
0:02:59.3]} 10. Bg5 {[%clk 0:02:40.9]} 10... Bb7 {[%clk 0:02:57.9]} 11. Qd2
{[%clk 0:02:34]} 11... Nbd7 {[%clk 0:02:55.5]} 12. Bh6 {[%clk 0:02:33]} 12...
Rfe8 {[%clk 0:02:53.2]} 13. Bxg7 {[%clk 0:02:30.3]} 13... Kxg7 {[%clk
0:02:54.1]} 14. Neg5 {[%clk 0:02:30.5]} 14... Rad8 {[%clk 0:02:49.1]} 15. Nxf7
{[%clk 0:02:21.6]} 15... Kxf7 {[%clk 0:02:45.3]} 16. Ng5+ {[%clk 0:02:21.6]}
16... Kg8 {[%clk 0:02:44.4]} 17. Bc4+ {[%clk 0:02:13.1]} 17... Nd5 {[%clk
0:02:42.7]} 18. Ne6 {[%clk 0:02:06.7]} 18... Qd6 {[%clk 0:02:42.5]} 19. Qh6
{[%clk 0:02:02.5]} 1-0

[Event "Early-Titled-Tuesday-Blitz-January-30-2024"]
[Site "Chess.com"]
[Date "2024.01.30"]
[Round "9"]
[White "Smile2005"]
[Black "ritanovikova"]
[Result "1-0"]
[WhiteElo "2454"]
[BlackElo "2200"]
[TimeControl "180+1"]
[EndTime "9:44:39 PST"]
[Termination "Smile2005 won by resignation"]

1. e4 {[%clk 0:03:00.9]} 1... d5 {[%clk 0:02:58.3]} 2. exd5 {[%clk 0:03:00.2]}
2... Qxd5 {[%clk 0:02:56.9]} 3. Nf3 {[%clk 0:03:01.1]} 3... Nf6 {[%clk
0:02:56.3]} 4. Be2 {[%clk 0:03:00.6]} 4... Bf5 {[%clk 0:02:54.9]} 5. d4 {[%clk
0:03:00.7]} 5... e6 {[%clk 0:02:51.9]} 6. c3 {[%clk 0:03:00.9]} 6... c5 {[%clk
0:02:49.7]} 7. O-O {[%clk 0:03:00.1]} 7... Nc6 {[%clk 0:02:49.4]} 8. dxc5 {[%clk
0:02:59.4]} 8... Bxc5 {[%clk 0:02:48.3]} 9. Qxd5 {[%clk 0:02:59.3]} 9... Nxd5
{[%clk 0:02:47.6]} 10. Bb5 {[%clk 0:02:57.9]} 10... Ne7 {[%clk 0:02:44.8]} 11.
Nbd2 {[%clk 0:02:55.7]} 11... O-O {[%clk 0:02:43.2]} 12. Nb3 {[%clk 0:02:54.8]}
12... Bb6 {[%clk 0:02:42.6]} 13. Re1 {[%clk 0:02:52.6]} 13... Rad8 {[%clk
0:02:41.6]} 14. Bxc6 {[%clk 0:02:52.6]} 14... Nxc6 {[%clk 0:02:40.3]} 15. Be3
{[%clk 0:02:53.1]} 15... Bc7 {[%clk 0:02:33.1]} 16. Nfd4 {[%clk 0:02:50.7]}
16... Nxd4 {[%clk 0:02:28.1]} 17. Nxd4 {[%clk 0:02:51.6]} 17... Bd3 {[%clk
0:02:24]} 18. Rad1 {[%clk 0:02:51]} 18... Ba6 {[%clk 0:02:20.4]} 19. g3 {[%clk
0:02:49.7]} 19... b6 {[%clk 0:02:13]} 20. Nc6 {[%clk 0:02:46.2]} 20... Rxd1
{[%clk 0:01:27.1]} 21. Rxd1 {[%clk 0:02:47.1]} 21... Bc4 {[%clk 0:01:22.8]} 22.
b3 {[%clk 0:02:45.4]} 22... Bd5 {[%clk 0:01:22.3]} 23. Ne7+ {[%clk 0:02:44.7]}
23... Kh8 {[%clk 0:01:20.6]} 24. Nxd5 {[%clk 0:02:45.1]} 24... e5 {[%clk
0:01:20.7]} 25. Nxc7 {[%clk 0:02:44.7]} 1-0